fUST/lending_fUST_20240105
["ID","MTS","AMOUNT","RATE_DAILY","PERIOD"]
[310178121,1704390647096,-596.46004971,0.00039178,7]
[310178123,1704390647105,-500.0,0.00039178,7]
[310178125,1704390647115,-500.0,0.00039178,7]
[310178127,1704390647129,-2021.56,0.00039178,7]
[310178129,1704390647138,-500.0,0.00039178,7]
[310178131,1704390647147,-689.43,0.00039178,7]
[310178133,1704390647157,-500.0,0.00039178,7]
[310178135,1704390647166,-3287.28,0.00039178,7]
[310178137,1704390647175,-500.0,0.00039178,7]
[310178139,1704390647184,-500.0,0.00039178,7]
[310178141,1704390647193,-500.0,0.00039178,7]
[310178143,1704390647202,-5962.16,0.00039178,7]
[310178145,1704390647211,-1310.53,0.00039178,7]
[310178147,1704390647220,-500.0,0.00039178,7]
[310178148,1704390647229,-500.0,0.00039178,7]
[310178151,1704390647239,-500.0,0.00039178,7]
[310178153,1704390647248,-500.0,0.00039178,7]
[310178154,1704390647258,-500.0,0.00039178,7]
[310178156,1704390647267,-500.0,0.00039178,7]
[310178158,1704390647277,-1405.61,0.00039178,7]
[310178160,1704390647286,-319.57377231,0.00039178,7]
[310178163,1704390647295,-500.0,0.00039178,7]
[310178164,1704390647305,-1064.58,0.00039178,7]
[310178166,1704390647313,-500.0,0.00039178,7]
[310178168,1704390647323,-500.0,0.00039178,2]
[310178171,1704390647332,-500.0,0.00039178,7]
[310178172,1704390647341,-737.27,0.00039178,7]
[310178174,1704390647350,-500.0,0.00039178,7]
[310178176,1704390647359,-3218.37,0.00039178,7]
[310178178,1704390647368,-2249.29,0.00039178,7]
[310178180,1704390647378,-500.0,0.00039178,7]
[310178182,1704390647388,-500.0,0.00039178,7]
[310178184,1704390647397,-151.0,0.00039178,2]
[310178186,1704390647406,-151.0,0.00039178,2]
[310178188,1704390647415,-225.350694,0.00039178,2]
[310178191,1704390647424,-225.350694,0.00039178,2]
[310178193,1704390647434,-269.24,0.000392,4]
[310178195,1704390647443,-200.13943,0.000394,11]
[310178197,1704390647452,-500.0,0.00039452,7]
[310178199,1704390647461,-500.0,0.00039452,7]
[310178201,1704390647470,-500.0,0.00039452,7]
[310178203,1704390647479,-500.0,0.00039452,7]
[310178204,1704390647488,-500.0,0.00039452,7]
[310178206,1704390647497,-500.0,0.00039452,7]
[310178208,1704390647507,-500.0,0.00039452,7]
[310178210,1704390647516,-500.0,0.00039452,7]
[310178212,1704390647526,-500.0,0.00039452,7]
[310178214,1704390647535,-500.0,0.00039452,7]
[310178216,1704390647545,-2189.53,0.00039452,7]
[310178218,1704390647554,-500.0,0.00039452,7]
[310178220,1704390647564,-500.0,0.00039452,7]
[310178223,1704390647574,-712.1,0.00039452,7]
[310178224,1704390647583,-893.18,0.00039452,7]
[310178227,1704390647593,-500.0,0.00039452,2]
[310178229,1704390647601,-807.53,0.00039452,7]
[310178231,1704390647612,-500.0,0.00039452,7]
[310178233,1704390647622,-1878.36,0.00039452,7]
[310178234,1704390647632,-500.0,0.00039452,7]
[310178236,1704390647641,-1038.7,0.00039452,7]
[310178238,1704390647650,-500.0,0.00039452,7]
[310178240,1704390647660,-500.0,0.00039452,7]
[310178242,1704390647670,-500.0,0.00039452,7]
[310178244,1704390647679,-500.0,0.00039452,2]
[310178246,1704390647689,-500.0,0.00039452,7]
[310178249,1704390647701,-500.0,0.00039452,7]
[310178251,1704390647711,-671.4,0.00039452,7]
[310178252,1704390647721,-500.0,0.00039452,7]
[310178254,1704390647731,-1014.23,0.00039452,7]
[310178256,1704390647740,-779.12,0.00039452,7]
[310178258,1704390647750,-500.0,0.00039452,7]
[310178260,1704390647760,-500.0,0.00039452,7]
[310178263,1704390647769,-775.88,0.00039452,7]
[310178264,1704390647778,-500.0,0.00039452,7]
[310178269,1704390647811,-500.0,0.00039452,7]
[310178271,1704390647820,-2778.32,0.00039452,7]
[310178273,1704390647829,-1263.33,0.00039452,7]
[310178275,1704390647838,-500.0,0.00039452,7]
[310178277,1704390647848,-208.11397138,0.00039452,7]
[310178279,1704390647857,-500.0,0.00039452,7]
[310178281,1704390647866,-500.0,0.00039452,7]
[310178283,1704390647875,-23.98845129,0.00039452,7]
[310178333,1704390648389,-1460.55,0.00038346,3]
[310178335,1704390648399,-1358.99,0.00038356,7]
[310178337,1704390648409,-278.54249506,0.0003863,7]
[310178349,1704390648509,-500.0,0.00038356,7]
[310178351,1704390648519,-1080.44750494,0.0003863,7]
[310178353,1704390648528,-500.0,0.0003863,7]
[310178355,1704390648538,-781.73,0.00038904,7]
[310178357,1704390648549,-1358.99,0.00038904,7]
[310178359,1704390648559,-781.73,0.00039178,7]
[310178360,1704390648568,-9.49467888,0.00039178,7]
[310181491,1704391750133,-154.67518212,0.00020999,4]
[310181492,1704391750159,-3131.31348869,0.00021,2]
[310181493,1704391750181,-11213.51096633,0.00023998,2]
[310181494,1704391750208,-200.0,0.00026397,15]
[310181495,1704391750233,-280.0,0.00029036,15]
[310181496,1704391750257,-685.53559507,0.0003,4]
[310181497,1704391750283,-180.56266,0.00031841,2]
[310181498,1704391750307,-180.56266,0.00031841,2]
[310181499,1704391750328,-1000.0,0.00034105,7]
[310181500,1704391750352,-317.01619485,0.00034106,4]
[310181501,1704391750377,-137.5685974,0.00034412,2]
[310181502,1704391750410,-123.0333446,0.00034412,2]
[310181505,1704391787527,154.79876161,0.00034106,5]
[310181507,1704391805458,154.79876161,0.00034106,5]
[310181509,1704391818365,409.17699443,0.00034106,2]
[310181510,1704391822957,282.15862485,0.00034106,3]
[310181512,1704391824898,1814.26014117,0.00034106,5]
[310181513,1704391825455,154.79876161,0.00034106,5]
[310181530,1704391832373,409.17699443,0.00034106,2]
[310181535,1704391832565,-677.41069855,0.00035614,7]
[310181558,1704391835119,1024.53484358,0.00034106,2]
[310181559,1704391836956,281.49830138,0.00034106,3]
[310181590,1704391838739,-322.58930145,0.00035614,7]
[310181592,1704391838748,-685.53559507,0.00035615,4]
[310181594,1704391838757,-193.197255,0.00035616,120]
[310181596,1704391838766,-246.44628881,0.00037,2]
[310181598,1704391838775,-1000.0,0.00037,37]
[310181600,1704391838784,-218.56343263,0.00037078,2]
[310181602,1704391838794,-150.78889555,0.00037213,2]
[310181604,1704391838803,-250.14068304,0.00037213,2]
[310181606,1704391838811,-167.83,0.00037356,2]
[310181608,1704391838820,-167.83,0.00037356,2]
[310181610,1704391838830,-167.83,0.00037356,2]
[310181611,1704391838840,-167.83,0.00037356,2]
[310181612,1704391838849,-167.83,0.00037356,2]
[310181613,1704391838859,-167.83,0.00037356,2]
[310181614,1704391838868,-270.07414181,0.00037356,2]
[310181615,1704391838877,-301.57779109,0.00037838,4]
[310181616,1704391838886,-494.0,0.00037863,2]
[310181617,1704391838895,-265.01794046,0.00037895,4]
[310181618,1704391838904,-154.84515485,0.00037895,4]
[310181619,1704391838913,-294.04006646,0.00037895,4]
[310181620,1704391838923,-154.84515485,0.00037895,4]
[310181621,1704391838933,-154.84515485,0.00037895,4]
[310181622,1704391838943,-2090.62355962,0.00037896,4]
[310181623,1704391838952,-49999.1999992,0.00037897,2]
[310181624,1704391838962,-647.74,0.0003799,3]
[310181625,1704391838971,-1109.17,0.0003799,3]
[310181626,1704391838981,-924.31,0.0003799,3]
[310181627,1704391838991,-229.83829243,0.00037999,4]
[310181628,1704391839000,-379.48356558,0.00038,4]
[310181629,1704391839010,-475245.40563509,0.00038,10]
[310181640,1704391840894,768.79202074,0.00034106,5]
[310181658,1704391841723,-0.72060882,0.00038,10]
[310182347,1704391849127,1024.53484358,0.00034106,2]
[310182675,1704391852528,4550.23036408,0.00034106,4]
[310182855,1704391854381,409.17699443,0.00034106,2]
[310184025,1704391866520,462.56963592,0.00034106,4]
[310184259,1704391869125,168.85613352,0.00034106,2]
[310184583,1704391872398,409.17699443,0.00034106,2]
[310185469,1704391892382,227.16124238,0.00034106,2]
[310185478,1704392578483,-228253.43941948,0.00047081,30]
[310185479,1704392578509,-234225.93450002,0.00047081,30]
[310185480,1704392578534,-37520.6260805,0.00047081,30]
[310185488,1704392828151,-154.81422293,0.00032393,5]
[310185489,1704392828171,-1602.99029952,0.00032393,3]
[310185490,1704392836085,-4718.20272545,0.00032393,3]
[310185491,1704392836106,-4388.38141554,0.00032393,4]
[310185492,1704392839089,-4168.91295183,0.00032392,2]
[310185493,1704392839112,-1815.2663856,0.00032393,4]
[310185494,1704392948121,-154.81422293,0.00030765,5]
[310185495,1704392948145,-12203.38142743,0.00030773,5]
[310185496,1704392948169,-6536.43197787,0.00032398,4]
[310185497,1704392948193,-26912.96274192,0.00032398,4]
[310185498,1704392954093,-8039.37026321,0.00032398,4]
[310185499,1704392958091,-49448.92572179,0.00032398,4]
[310185500,1704392971167,-12203.38142743,0.00030773,5]
[310185501,1704392971188,-20762.98760101,0.00032398,4]
[310185502,1704392971208,-4168.91295183,0.00032399,2]
[310185503,1704392971228,-737.12406228,0.000324,4]
[310185504,1704392971248,-176.0,0.00033,2]
[310185505,1704392971267,-1000.0,0.00034172,7]
[310185506,1704392971287,-1072.39778292,0.00034182,4]
[310185507,1704392971308,-1615.5977627,0.00034183,4]
[310185508,1704392971330,-2545.70969112,0.00034184,3]
[310185509,1704392971351,-154.81422293,0.00034195,5]
[310185510,1704392971372,-3529.72449778,0.00034197,4]
[310185511,1704392973092,-2432.86370923,0.00034197,4]
[310185512,1704392973113,-163.24059418,0.00034521,2]
[310185586,1704393032842,-1406.92609145,0.00030778,5]
[310185588,1704393032852,-24900.0,0.00033186,2]
[310185590,1704393032861,-154.81422293,0.00034195,5]
[310185592,1704393032870,-151.50827296,0.00034452,2]
[310185594,1704393032880,-12.75940582,0.00034521,2]
[310185596,1704393032889,-620.00243712,0.00034569,2]
[310185598,1704393032898,-590.45108746,0.00035,2]
[310185600,1704393032908,-3539.86097792,0.00035,2]
[310185602,1704393032917,-4278.82706661,0.00035,4]
[310185604,1704393032926,-193.197255,0.00036869,120]
[310185606,1704393032936,-171.52799154,0.00037895,8]
[310185607,1704393032945,-160.10740384,0.00037896,2]
[310185610,1704393032955,-587.23,0.00037985,3]
[310185611,1704393032965,-1025.18,0.00037985,3]
[310185613,1704393032975,-155.16060087,0.00037994,4]
[310185615,1704393032984,-164.65816911,0.00037994,4]
[310185617,1704393032993,-1000.0,0.00037994,7]
[310185619,1704393033002,-3546.65848748,0.00037994,2]
[310185621,1704393033012,-288.13093489,0.00037995,4]
[310185623,1704393033022,-154.92253873,0.00037995,4]
[310185625,1704393033031,-1784.05487645,0.00037995,4]
[310185627,1704393033040,-12120.95631875,0.00037995,4]
[310185710,1704393039097,-854.32,0.00037986,3]
[310185711,1704393039106,-3284.36804131,0.00037995,4]
[310185712,1704393039119,-36484.34493569,0.00037995,4]
[310185713,1704393039128,-27454.69568698,0.00037996,2]
[310185714,1704393039137,-1454.89912219,0.00037996,14]
[310185715,1704393039147,-689.62202558,0.00037996,4]
[310185716,1704393039156,-170.26381379,0.00037996,4]
[310185717,1704393039166,-2802.52127845,0.00037996,4]
[310185719,1704393039175,-174.69270311,0.00037996,2]
[310185720,1704393039184,-627.28330549,0.00037996,2]
[310185721,1704393039194,-3622.30047657,0.00037997,4]
[310185722,1704393039203,-155.13281341,0.00037997,4]
[310185723,1704393039212,-3370.17064279,0.00037997,4]
[310185724,1704393039222,-390.97326283,0.00037998,4]
[310185725,1704393039231,-524.96234709,0.00037998,4]
[310185726,1704393039241,-369.24987704,0.00037998,4]
[310185727,1704393039250,-553.40007214,0.00037998,4]
[310185728,1704393039259,-1912.58653445,0.00037998,4]
[310185729,1704393039270,-589.81027724,0.00037998,4]
[310185730,1704393039279,-269.85630681,0.00037998,2]
[310185731,1704393039289,-1232.56547556,0.00037998,4]
[310185732,1704393039298,-154.9380186,0.00037998,4]
[310185733,1704393039307,-369.79772262,0.00037998,4]
[310185734,1704393039317,-160.93191398,0.00037998,4]
[310185735,1704393039326,-286.8622402,0.00037998,2]
[310185736,1704393039335,-3889.65583646,0.00037998,4]
[310185737,1704393039347,-460.98644681,0.00037998,4]
[310185738,1704393039366,-6313.84424171,0.00037998,2]
[310185739,1704393039377,-3893.10032845,0.00037998,4]
[310185740,1704393039387,-13673.02936715,0.00037998,4]
[310185741,1704393039397,-56580.28905298,0.00037999,4]
[310185742,1704393039407,-454.68345432,0.00037999,4]
[310185743,1704393039416,-376.36998329,0.00037999,7]
[310185744,1704393039426,-42181.65277948,0.00038,10]
[310185745,1704393039436,-162.16946118,0.00038,4]
[310185746,1704393039445,-150.0,0.00038,12]
[310185747,1704393039455,-529.0,0.00038,2]
[310185748,1704393039464,-309.6130772,0.00038,7]
[310185749,1704393039474,-13676.29394445,0.00038,2]
[310185750,1704393039483,-1050.0,0.00038,2]
[310185751,1704393039493,-160.10740381,0.00038016,2]
[310185752,1704393039502,-160.10740381,0.00038136,2]
[310185753,1704393039512,-41666.35365455,0.00038256,2]
[310185754,1704393039521,-160.10740381,0.00038256,2]
[310185755,1704393039531,-500.0,0.00038356,7]
[310185756,1704393039540,-500.0,0.00038356,7]
[310185757,1704393039550,-500.0,0.00038356,7]
[310185758,1704393039560,-500.0,0.00038356,7]
[310185759,1704393039569,-500.0,0.00038356,7]
[310185760,1704393039578,-500.0,0.00038356,7]
[310185761,1704393039588,-223.26616222,0.00038356,7]
[310185762,1704393039598,-516.93241572,0.00038356,7]
[310185763,1704393039607,-531.22656994,0.00038356,7]
[310185764,1704393039766,-407.33396314,0.00038356,7]
[310185765,1704393039776,-500.0,0.00038356,7]
[310185766,1704393039786,-500.0,0.00038356,7]
[310185767,1704393039795,-500.0,0.00038356,7]
[310185768,1704393039804,-500.0,0.00038356,7]
[310185769,1704393039813,-500.0,0.00038356,7]
[310185770,1704393039822,-850.16,0.00038356,7]
[310185771,1704393039831,-500.0,0.00038356,7]
[310185772,1704393039841,-202.16377138,0.00038356,7]
[310185773,1704393039850,-500.0,0.00038356,7]
[310185774,1704393039860,-500.0,0.00038356,7]
[310185775,1704393039869,-500.0,0.00038356,7]
[310185776,1704393039878,-500.0,0.00038356,7]
[310185777,1704393039888,-500.0,0.00038356,7]
[310185778,1704393039897,-500.0,0.00038356,7]
[310185779,1704393039906,-512.51115803,0.00038356,7]
[310185780,1704393039915,-500.0,0.00038356,7]
[310185781,1704393039925,-1316.54,0.00038356,7]
[310185782,1704393039934,-500.0,0.00038356,7]
[310185783,1704393039943,-500.0,0.00038356,7]
[310185784,1704393039953,-500.0,0.00038356,7]
[310185785,1704393039962,-500.0,0.00038356,7]
[310185786,1704393039972,-500.0,0.00038356,7]
[310185787,1704393039981,-500.0,0.00038356,7]
[310185788,1704393039991,-500.0,0.00038356,7]
[310185789,1704393040000,-500.0,0.00038356,7]
[310185790,1704393040010,-500.0,0.00038356,7]
[310185791,1704393040019,-500.0,0.00038356,7]
[310185792,1704393040029,-500.0,0.00038356,7]
[310185793,1704393040038,-500.0,0.00038356,7]
[310185794,1704393040047,-500.0,0.00038356,7]
[310185795,1704393040057,-500.0,0.00038356,7]
[310185796,1704393040066,-436.5382808,0.00038356,7]
[310185797,1704393040075,-500.0,0.00038356,7]
[310185798,1704393040085,-500.0,0.00038356,7]
[310185799,1704393040094,-504.90989519,0.00038356,7]
[310185800,1704393040104,-596.820312,0.00038356,7]
[310185801,1704393040113,-1476.37,0.00038356,7]
[310185803,1704393040123,-500.0,0.00038356,7]
[310185804,1704393040132,-649.24,0.00038356,7]
[310185805,1704393040142,-500.0,0.00038356,7]
[310185806,1704393040151,-500.0,0.00038356,7]
[310185807,1704393040161,-500.0,0.00038356,7]
[310185808,1704393040170,-514.66008108,0.00038356,7]
[310185809,1704393040179,-500.0,0.00038356,7]
[310185810,1704393040189,-274.27195752,0.00038356,7]
[310185811,1704393040203,-500.0,0.00038356,7]
[310185812,1704393040213,-648.7,0.00038356,7]
[310185813,1704393040222,-500.0,0.00038356,7]
[310185814,1704393040232,-182.10087568,0.00038356,7]
[310185815,1704393040242,-500.0,0.00038356,7]
[310185816,1704393040251,-197.34080759,0.00038356,7]
[310185817,1704393040261,-500.0,0.00038356,7]
[310185818,1704393040271,-500.0,0.00038356,7]
[310185819,1704393040282,-601.06,0.00038356,7]
[310185820,1704393040291,-500.0,0.00038356,7]
[310185821,1704393040301,-500.0,0.00038356,7]
[310185822,1704393040310,-416.40934462,0.00038356,7]
[310185823,1704393040319,-718.0,0.00038356,7]
[310185824,1704393040329,-530.19501161,0.00038356,7]
[310185825,1704393040338,-500.0,0.00038356,7]
[310185826,1704393040349,-500.0,0.00038356,7]
[310185827,1704393040358,-500.0,0.00038356,7]
[310185828,1704393040368,-500.0,0.00038356,7]
[310185829,1704393040377,-624.2989346,0.00038356,7]
[310185830,1704393040387,-500.0,0.00038356,7]
[310185831,1704393040396,-500.0,0.00038356,7]
[310185832,1704393040406,-500.0,0.00038356,7]
[310185833,1704393040415,-516.60431765,0.00038356,7]
[310185834,1704393040424,-500.0,0.00038356,7]
[310185835,1704393040434,-500.0,0.00038356,7]
[310185836,1704393040443,-500.0,0.00038356,7]
[310185837,1704393040452,-531.55,0.00038356,7]
[310185838,1704393040462,-643.44,0.00038356,7]
[310185839,1704393040472,-500.0,0.00038356,7]
[310185840,1704393040480,-500.0,0.00038356,7]
[310185841,1704393040489,-530.85,0.00038356,7]
[310185842,1704393040498,-500.0,0.00038356,7]
[310185843,1704393040507,-500.0,0.00038356,7]
[310185844,1704393040517,-195.19724746,0.00038356,7]
[310185845,1704393040526,-574.68684892,0.00038356,7]
[310185846,1704393040539,-500.0,0.00038356,7]
[310185847,1704393040571,-500.0,0.00038356,7]
[310185848,1704393040581,-500.0,0.00038356,7]
[310185849,1704393040590,-413.73400645,0.00038356,7]
[310185850,1704393040599,-500.0,0.00038356,7]
[310185851,1704393040608,-500.0,0.00038356,7]
[310185852,1704393040617,-2500.95,0.00038356,7]
[310185853,1704393040626,-500.0,0.00038356,7]
[310185854,1704393040635,-500.0,0.00038356,7]
[310185855,1704393040644,-500.0,0.00038356,7]
[310185856,1704393040653,-500.0,0.00038356,7]
[310185857,1704393040662,-500.0,0.00038356,7]
[310185858,1704393040671,-500.0,0.00038356,7]
[310185859,1704393040680,-500.0,0.00038356,7]
[310185860,1704393040689,-451.19088536,0.00038356,2]
[310185861,1704393040697,-500.0,0.00038356,7]
[310185862,1704393040706,-502.46968567,0.00038356,2]
[310185863,1704393040715,-221.18926092,0.00038356,7]
[310185864,1704393040724,-500.0,0.00038356,7]
[310185865,1704393040734,-500.0,0.00038356,7]
[310185866,1704393040743,-802.73,0.00038356,7]
[310185868,1704393040752,-500.0,0.00038356,7]
[310185870,1704393040761,-500.0,0.00038356,2]
[310185871,1704393040772,-500.0,0.00038356,7]
[310185872,1704393040781,-2020.5,0.00038356,7]
[310185873,1704393040791,-500.0,0.00038356,7]
[310185874,1704393040801,-500.0,0.00038356,7]
[310185876,1704393040810,-833.9,0.00038356,7]
[310185878,1704393040820,-200.0,0.00038356,7]
[310185880,1704393040829,-500.0,0.00038356,7]
[310185881,1704393040838,-500.0,0.00038356,7]
[310185883,1704393040847,-500.0,0.00038356,7]
[310185884,1704393040857,-502.84597761,0.00038356,7]
[310185887,1704393040866,-500.0,0.00038356,7]
[310185889,1704393040875,-500.0,0.00038356,7]
[310185891,1704393040885,-500.0,0.00038356,7]
[310185893,1704393040894,-500.0,0.00038356,7]
[310185894,1704393040903,-500.0,0.00038356,7]
[310185895,1704393040913,-500.0,0.00038356,7]
[310185897,1704393040922,-500.0,0.00038356,7]
[310185898,1704393040931,-500.0,0.00038356,7]
[310185900,1704393040941,-500.0,0.00038356,7]
[310185902,1704393040950,-500.0,0.00038356,7]
[310185903,1704393040960,-500.0,0.00038356,7]
[310185904,1704393040969,-500.0,0.00038356,7]
[310185905,1704393040978,-501.81811394,0.00038356,7]
[310185907,1704393040988,-500.0,0.00038356,7]
[310185909,1704393040996,-1000.0,0.00038356,5]
[310185911,1704393041005,-500.0,0.00038356,7]
[310185912,1704393041015,-806.89,0.00038356,7]
[310185914,1704393041024,-500.0,0.00038356,7]
[310185915,1704393041033,-500.0,0.00038356,7]
[310185916,1704393041043,-500.0,0.00038356,7]
[310185917,1704393041052,-500.0,0.00038356,7]
[310185918,1704393041061,-2983.65,0.00038356,7]
[310185919,1704393041070,-560.69836054,0.00038356,7]
[310185920,1704393041079,-500.0,0.00038356,7]
[310185921,1704393041088,-500.0,0.00038356,7]
[310185923,1704393041097,-500.76130408,0.00038356,7]
[310185925,1704393041106,-500.0,0.00038356,7]
[310185927,1704393041115,-500.0,0.00038356,7]
[310185929,1704393041124,-240.17936533,0.00038356,7]
[310185930,1704393041133,-500.0,0.00038356,7]
[310185932,1704393041142,-505.18,0.00038356,7]
[310185934,1704393041152,-1088.97,0.00038356,7]
[310185936,1704393041161,-500.0,0.00038356,7]
[310185938,1704393041170,-501.34867279,0.00038356,7]
[310185940,1704393041180,-500.0,0.00038356,7]
[310185942,1704393041190,-186.45534578,0.00038356,7]
[310185944,1704393041199,-918.8,0.00038356,7]
[310185946,1704393041208,-500.0,0.00038356,7]
[310185949,1704393041218,-500.0,0.00038356,7]
[310185951,1704393041228,-500.0,0.00038356,7]
[310185953,1704393041237,-500.25977514,0.00038356,7]
[310185955,1704393041246,-500.25361257,0.00038356,7]
[310185956,1704393041255,-500.0,0.00038356,7]
[310185958,1704393041266,-830.7,0.00038356,7]
[310185961,1704393041275,-515.95010387,0.00038356,7]
[310185963,1704393041284,-500.0,0.00038356,7]
[310185965,1704393041293,-862.39,0.00038356,7]
[310185967,1704393041302,-500.0,0.00038356,7]
[310185968,1704393041311,-5000.0,0.00038356,10]
[310185971,1704393041321,-500.0,0.00038356,7]
[310185973,1704393041330,-500.0,0.00038356,7]
[310185974,1704393041340,-500.0,0.00038356,7]
[310185976,1704393041350,-500.0,0.00038356,7]
[310185978,1704393041359,-500.0,0.00038356,7]
[310185980,1704393041368,-500.0,0.00038356,7]
[310185982,1704393041377,-3405.25,0.00038356,7]
[310185984,1704393041386,-500.0,0.00038356,7]
[310185986,1704393041396,-500.0,0.00038356,7]
[310185988,1704393041405,-500.0,0.00038356,7]
[310185990,1704393041414,-500.0,0.00038356,7]
[310185992,1704393041423,-500.0,0.00038356,7]
[310185994,1704393041433,-1394.8,0.00038356,7]
[310185996,1704393041442,-500.0,0.00038356,7]
[310185998,1704393041451,-500.0,0.00038356,7]
[310186000,1704393041462,-2329.47,0.00038356,7]
[310186002,1704393041471,-500.0,0.00038356,7]
[310186005,1704393041481,-500.0,0.00038356,7]
[310186007,1704393041490,-517.28879041,0.00038356,7]
[310186009,1704393041499,-500.0,0.00038356,7]
[310186011,1704393041508,-500.0,0.00038356,7]
[310186013,1704393041518,-1455.7,0.00038356,7]
[310186014,1704393041527,-530.28,0.00038356,2]
[310186016,1704393041536,-500.0,0.00038356,7]
[310186019,1704393041550,-500.0,0.00038356,7]
[310186021,1704393041559,-3333.06,0.00038356,7]
[310186022,1704393041569,-500.0,0.00038356,7]
[310186025,1704393041578,-527.64080947,0.00038356,7]
[310186026,1704393041587,-500.0,0.00038356,7]
[310186028,1704393041596,-500.0,0.00038356,7]
[310186031,1704393041605,-500.0,0.00038356,2]
[310186033,1704393041615,-500.0,0.00038356,7]
[310186035,1704393041624,-500.0,0.00038356,7]
[310186037,1704393041633,-500.0,0.00038356,7]
[310186039,1704393041642,-500.0,0.00038356,7]
[310186041,1704393041651,-234.79234472,0.00038356,7]
[310186043,1704393041660,-500.0,0.00038356,7]
[310186044,1704393041670,-500.0,0.00038356,7]
[310186047,1704393041679,-878.43,0.00038356,7]
[310186049,1704393041689,-1283.08,0.00038356,7]
[310186051,1704393041698,-219.00598534,0.00038356,7]
[310186052,1704393041707,-1193.2,0.00038356,7]
[310186054,1704393041717,-500.0,0.00038356,7]
[310186057,1704393041727,-500.0,0.00038356,7]
[310186059,1704393041736,-769.94,0.00038356,7]
[310186060,1704393041745,-500.0,0.00038356,7]
[310186062,1704393041755,-1191.58,0.00038356,7]
[310186065,1704393041766,-500.0,0.00038356,7]
[310186066,1704393041775,-500.0,0.00038356,7]
[310186069,1704393041784,-688.4,0.00038356,7]
[310186070,1704393041794,-500.0,0.00038356,7]
[310186073,1704393041803,-11100.26,0.00038356,7]
[310186075,1704393041812,-500.0,0.00038356,7]
[310186077,1704393041821,-500.0,0.00038356,7]
[310186079,1704393041830,-500.0,0.00038356,7]
[310186081,1704393041839,-500.0,0.00038356,7]
[310186083,1704393041848,-500.0,0.00038356,7]
[310186085,1704393041857,-369.5718302,0.00038356,7]
[310186087,1704393041866,-819.46,0.00038356,7]
[310186089,1704393041875,-500.0,0.00038356,7]
[310186091,1704393041884,-504.46693203,0.00038356,7]
[310186093,1704393041893,-500.0,0.00038356,7]
[310186095,1704393041903,-500.0,0.00038356,7]
[310186097,1704393041912,-500.0,0.00038356,7]
[310186099,1704393041921,-500.0,0.00038356,7]
[310186101,1704393041930,-500.0,0.00038356,7]
[310186103,1704393041939,-500.0,0.00038356,7]
[310186105,1704393041948,-500.0,0.00038356,7]
[310186106,1704393041958,-500.0,0.00038356,7]
[310186108,1704393041968,-26064.36,0.00038356,7]
[310186110,1704393041978,-500.0,0.00038356,7]
[310186113,1704393041987,-500.0,0.00038356,7]
[310186115,1704393041996,-500.0,0.00038356,7]
[310186117,1704393042005,-500.0,0.00038356,7]
[310186119,1704393042015,-500.0,0.00038356,7]
[310186121,1704393042024,-500.0,0.00038356,7]
[310186123,1704393042033,-500.0,0.00038356,7]
[310186125,1704393042044,-7372.24,0.00038356,7]
[310186127,1704393042054,-175.92039455,0.00038356,2]
[310186128,1704393042065,-740.83,0.00038356,7]
[310186130,1704393042076,-500.0,0.00038356,7]
[310186132,1704393042086,-500.0,0.00038356,7]